[Event "32nd Panamerican Youth 2022"]
[Site "Montevideo"]
[Date "2022.06.27"]
[Round "3.4"]
[White "Jara Pino, Mateo Stefano"]
[Black "Casalaspro, Mathias Andre"]
[Result "0-1"]
[ECO "A57"]
[WhiteElo "1464"]
[BlackElo "1686"]
[Annotator "NA RC"]
[PlyCount "88"]
[EventDate "2022.06.26"]
[EventType "swiss"]
[EventCountry "URU"]
[SourceTitle "playchess.com"]
[Source "ChessBase"]
[SourceQuality "1"]
[TimeControl "5400+30"]

1. d4 {[%emt 0:00:03]} c5 {[%emt 0:00:45]} 2. d5 {[%emt 0:00:17]} Nf6 {[%emt 0:00:27]} 3. c4 {[%emt 0:00:33]} b5 {[%emt 0:00:29]} 4. e3 {[%emt 0:01:03]} bxc4 {[%emt 0:02:15]} 5. Bxc4 {[%emt 0:00:21]} g6 {[%emt 0:00:54]} 6. Nc3 {[%emt 0:01:24]} d6 {[%emt 0:00:11]} 7. Nf3 {[%emt 0:01:13]} Bg7 {[%emt 0:00:24]} 8. O-O {[%emt 0:02:37]} O-O {[%emt 0:01:25]} 9. h3 {[%emt 0:00:26]} Ba6 {[%emt 0:05:41]} 10. Bxa6 {[%emt 0:01:08]} Nxa6 {[%emt 0:00:04]} 11. a3 {[%emt 0:02:14]} Rb8 {[%emt 0:03:00]} 12. Re1 {[%emt 0:02:14]} Qb6 {[%emt 0:05:42]} 13. e4 {[%emt 0:06:23]} Nd7 {[%emt 0:00:40]} 14. Rb1 {[%emt 0:05:13]} Bxc3 {[%emt 0:00:38]} 15. Re2 {[%emt 0:05:04]} Bg7 {[%emt 0:00:36]} 16. Bd2 {[%emt 0:03:22]} Rfc8 {[%emt 0:01:58]} 17. b4 {[%emt 0:01:58]} cxb4 {[%emt 0:00:55]} 18. axb4 {[%emt 0:01:19]} Qb5 {[%emt 0:01:31]} 19. Be3 {[%emt 0:01:53]} Rc4 {[%emt 0:03:31]} 20. Bxa7 {[%emt 0:04:00]} Rb7 {[%emt 0:00:23]} 21. Be3 {[%emt 0:02:48]} Rxb4 {[%emt 0:00:53]} 22. Rxb4 {[%emt 0:07:08]} Qxb4 {[%emt 0:00:55]} 23. Kh2 {[%emt 0:09:10]} Nac5 {[%emt 0:01:14]} 24. Qc2 {[%emt 0:02:17]} Qxe4 {[%emt 0:00:55]} 25. Qa2 {[%emt 0:05:24]} Qa4 {[%emt 0:02:08]} 26. Qd2 {[%emt 0:02:04]} Rb2 {[%emt 0:01:50]} 27. Qe1 {[%emt 0:02:37]} Qa2 {[%emt 0:01:13]} 28. Rxb2 {[%emt 0:02:06]} Bxb2 {[%emt 0:00:38]} 29. Bxc5 {[%emt 0:00:47]} dxc5 {[%emt 0:01:24]} 30. Qxe7 {[%emt 0:00:42]} Qxd5 {[%emt 0:00:11]} 31. Qd8+ {[%emt 0:02:37]} Kg7 {[%emt 0:00:05]} 32. Qc8 {[%emt 0:02:57]} c4 {[%emt 0:01:04]} 33. Qa6 {[%emt 0:01:37]} c3 {[%emt 0:00:32]} 34. Qa4 {[%emt 0:00:32]} Nc5 {[%emt 0:00:30]} 35. Qc2 {[%emt 0:00:42]} Qd3 {[%emt 0:00:07]} 36. Ne1 {[%emt 0:01:26]} Qd2 {[%emt 0:01:02]} 37. Qb1 {[%emt 0:00:58]} Ne6 {[%emt 0:00:40]} 38. Qe4 {[%emt 0:02:27]} Qxf2 {[%emt 0:00:46]} 39. Nd3 {[%emt 0:01:10]} Qd4 {[%emt 0:02:48]} 40. Qf3 {[%emt 0:00:34]} c2 {[%emt 0:00:18]} 41. Qf1 {[%emt 0:00:35]} Qxd3 {[%emt 0:00:01]} 42. Qxd3 {[%emt 0:00:18]} c1=Q {[%emt 0:00:01]} 43. g3 {[%emt 0:03:32]} Bd4 {[%emt 0:00:10]} 44. h4 {[%emt 0:00:45]} Qg1+ {[%emt 0:00:01]} 0-1

[Event "32nd Panamerican Youth 2022"]
[Site "Montevideo"]
[Date "2022.06.27"]
[Round "3.5"]
[White "Su, Jasmine Zhixin"]
[Black "El Hage Serrano, Caely"]
[Result "1/2-1/2"]
[ECO "C10"]
[WhiteElo "1984"]
[BlackElo "1308"]
[Annotator "RC"]
[PlyCount "70"]
[EventDate "2022.06.26"]
[EventType "swiss"]
[EventCountry "URU"]
[SourceTitle "playchess.com"]
[Source "ChessBase"]
[SourceQuality "1"]
[TimeControl "5400+30"]

1. e4 {[%emt 0:00:02]} e6 {[%emt 0:00:14]} 2. d4 {[%emt 0:00:02]} d5 {[%emt 0:00:09]} 3. Nc3 {[%emt 0:00:04]} dxe4 {[%emt 0:01:07]} 4. Nxe4 {[%emt 0:00:03]} Nd7 {[%emt 0:00:18]} 5. Nf3 {[%emt 0:00:21]} Ngf6 {[%emt 0:00:22]} 6. Nxf6+ {[%emt 0:00:05]} Nxf6 {[%emt 0:00:08]} 7. Ne5 {[%emt 0:00:19]} a6 {[%emt 0:01:02]} 8. Bd3 {[%emt 0:01:23]} c5 {[%emt 0:05:29]} 9. dxc5 {[%emt 0:01:25]} Bxc5 {[%emt 0:00:49]} 10. O-O {[%emt 0:00:18]} Bd4 {[%emt 0:01:44]} 11. Qe2 {[%emt 0:02:23]} Bxe5 {[%emt 0:07:56]} 12. Qxe5 {[%emt 0:00:13]} Qd5 {[%emt 0:00:14]} 13. Qe2 {[%emt 0:05:47]} Bd7 {[%emt 0:02:23]} 14. Rd1 {[%emt 0:04:13]} Bc6 {[%emt 0:03:00]} 15. Qf1 {[%emt 0:01:51]} Qh5 {[%emt 0:16:42]} 16. Bf4 {[%emt 0:07:19]} O-O {[%emt 0:06:09]} 17. Re1 {[%emt 0:05:36]} Nd5 {[%emt 0:08:50]} 18. Bd2 {[%emt 0:02:00]} e5 {[%emt 0:08:21]} 19. c4 {[%emt 0:04:39]} Nf4 {[%emt 0:00:45]} 20. Bxf4 {[%emt 0:02:11]} exf4 {[%emt 0:00:09]} 21. f3 {[%emt 0:03:55]} Qg5 {[%emt 0:01:08]} 22. Be4 {[%emt 0:05:19]} Rac8 {[%emt 0:00:25]} 23. Rad1 {[%emt 0:01:08]} h5 {[%emt 0:03:56]} 24. b3 {[%emt 0:01:13]} h4 {[%emt 0:00:41]} 25. h3 {[%emt 0:00:32]} Rcd8 {[%emt 0:04:19]} 26. Bxc6 {[%emt 0:02:00]} bxc6 {[%emt 0:00:17]} 27. Qf2 {[%emt 0:02:29]} Rxd1 {[%emt 0:02:03]} 28. Rxd1 {[%emt 0:00:01]} Rd8 {[%emt 0:00:13]} 29. Rxd8+ {[%emt 0:05:30]} Qxd8 {[%emt 0:00:09]} 30. Qc2 {[%emt 0:00:35]} Qd4+ {[%emt 0:00:47]} 31. Kf1 {[%emt 0:00:00]} Kf8 {[%emt 0:01:04]} 32. c5 {[%emt 0:02:57]} g5 {[%emt 0:04:01]} 33. a4 {[%emt 0:03:15]} a5 {[%emt 0:01:07]} 34. Ke2 {[%emt 0:02:42]} Qe3+ {[%emt 0:00:12]} 35. Kf1 {[%emt 0:00:16]} Qd4 {[%emt 0:01:09]} 1/2-1/2

[Event "32nd Panamerican Youth 2022"]
[Site "Montevideo"]
[Date "2022.06.27"]
[Round "3.6"]
[White "Carvajal Mendoza, Maria Belen"]
[Black "Vidyarthi, Omya"]
[Result "0-1"]
[ECO "D17"]
[WhiteElo "1377"]
[BlackElo "1872"]
[Annotator "NA RC"]
[PlyCount "56"]
[EventDate "2022.06.26"]
[EventType "swiss"]
[EventCountry "URU"]
[SourceTitle "playchess.com"]
[Source "ChessBase"]
[SourceQuality "1"]
[TimeControl "5400+30"]

1. d4 {[%emt 0:00:03]} d5 {[%emt 0:00:10]} 2. c4 {[%emt 0:00:11]} c6 {[%emt 0:00:10]} 3. Nf3 {[%emt 0:00:12]} Nf6 {[%emt 0:00:11]} 4. Nc3 {[%emt 0:00:06]} dxc4 {[%emt 0:00:23]} 5. a4 {[%emt 0:00:32]} Bf5 {[%emt 0:00:13]} 6. Ne5 {[%emt 0:00:29]} Nbd7 {[%emt 0:00:30]} 7. Nxc4 {[%emt 0:00:14]} Nb6 {[%emt 0:00:36]} 8. Ne5 {[%emt 0:01:19]} a5 {[%emt 0:00:31]} 9. f3 {[%emt 0:00:43]} Nfd7 {[%emt 0:01:03]} 10. Nxd7 $1 {[%emt 0:01:23]} Qxd7 {[%emt 0:01:10]} (10... Bxd7 $11 {keeps the balance.} 11. e4 e6) 11. e4 {[%emt 0:02:31]} Bg6 {[%emt 0:00:39]} 12. Bf4 {[%emt 0:07:36]} ({White should play} 12. h4 $16 f5 13. d5) 12... e6 {[%emt 0:01:52]} 13. d5 {[%emt 0:09:18]} ({White should try} 13. h4 $14 h5 14. Be3) 13... exd5 {[%emt 0:06:09]} (13... Bc5 $5 {[%cal Re6d5]}) 14. exd5 {[%emt 0:03:49]} (14. Qd4 $11 Qd8 15. Be3) 14... O-O-O {[%emt 0:08:50]} ({Don't take} 14... Nxd5 15. Nxd5 Qxd5 16. Qxd5 cxd5 17. Bb5+ Ke7 18. Kf2 $14) 15. Rc1 $2 {[%emt 0:10:47]} (15. dxc6 $1 $15 Qe8+ 16. Qe2 Qxc6 17. Rc1 (17. Qe5 $2 Re8 $19)) 15... Nxd5 {[%emt 0:02:37]} ({Avoid the trap} 15... Bb4 $2 16. Kf2 Qf5 17. g3 Bxc3 18. Rxc3 Nxd5 19. Qd4 Nxc3 20. Qxc3) 16. Nxd5 $19 {[%emt 0:16:54] [#]} Qe6+ $1 {[%emt 0:03:11] Pin} ({Worse is} 16... Qxd5 17. Qxd5 Rxd5 18. Bc4 $17) 17. Be2 $2 {[%emt 0:02:26]} (17. Kf2 Rxd5 18. Qe1 Bc5+ 19. Kg3) 17... Rxd5 {[%emt 0:00:36]} 18. Qb3 {[%emt 0:06:37]} Bd3 {[%emt 0:00:55]} 19. O-O {[%emt 0:01:08]} Bxe2 {[%emt 0:01:43]} 20. Qb6 {[%emt 0:01:29]} Bd6 {[%emt 0:05:58]} 21. Bxd6 {[%emt 0:07:55]} Qxd6 {[%emt 0:00:44]} 22. Rfe1 {[%emt 0:00:59]} Bxf3 {[%emt 0:02:08]} 23. gxf3 {[%emt 0:04:15]} Rd2 {[%emt 0:00:16]} 24. Rxc6+ {[%emt 0:08:06]} Qxc6 {[%emt 0:00:30]} 25. Qxc6+ {[%emt 0:00:08]} bxc6 {[%emt 0:00:05]} 26. Re7 {[%emt 0:00:22]} Rxb2 {[%emt 0:00:10]} 27. Ra7 {[%emt 0:00:20]} Kb8 {[%emt 0:00:07]} 28. Rxa5 {[%emt 0:00:30]} Rd8 0-1

[Event "32nd Panamerican Youth 2022"]
[Site "Montevideo"]
[Date "2022.06.27"]
[Round "3.7"]
[White "Gomez Gonzales, Fabiana"]
[Black "Mollo Figueroa, Nicole"]
[Result "0-1"]
[ECO "D00"]
[WhiteElo "1289"]
[BlackElo "1340"]
[Annotator "NA RC"]
[PlyCount "74"]
[EventDate "2022.06.26"]
[EventType "swiss"]
[EventCountry "URU"]
[SourceTitle "playchess.com"]
[Source "ChessBase"]
[SourceQuality "1"]
[TimeControl "5400+30"]

1. d4 {[%emt 0:00:03]} d5 {[%emt 0:05:50]} 2. Bg5 {[%emt 0:00:48]} Nf6 {[%emt 0:03:52]} 3. Bxf6 {[%emt 0:01:31]} gxf6 {[%emt 0:00:12]} 4. e3 {[%emt 0:01:15]} e5 {[%emt 0:03:31]} 5. c3 {[%emt 0:06:35]} c5 {[%emt 0:09:45]} 6. g3 {[%emt 0:08:46]} Nc6 {[%emt 0:02:31]} 7. Ne2 {[%emt 0:02:18]} Be6 {[%emt 0:07:03]} 8. Bg2 {[%emt 0:02:34]} Qd7 {[%emt 0:03:19]} 9. Na3 {[%emt 0:02:08]} O-O-O {[%emt 0:11:39]} 10. h3 {[%emt 0:09:06]} h5 {[%emt 0:01:56]} 11. Nc2 {[%emt 0:12:49]} Kb8 {[%emt 0:06:20]} 12. Qd2 {[%emt 0:06:34]} c4 {[%emt 0:04:57]} 13. O-O-O {[%emt 0:08:03]} Bh6 {[%emt 0:02:45]} 14. Kb1 {[%emt 0:00:40]} Qe7 {[%emt 0:03:11]} 15. f4 {[%emt 0:03:50]} e4 {[%emt 0:03:36]} 16. Rdf1 {[%emt 0:02:49]} Qd7 {[%emt 0:01:19]} 17. Qe1 {[%emt 0:02:13]} Rdg8 {[%emt 0:01:47]} 18. Qf2 {[%emt 0:01:10]} Ne7 {[%emt 0:00:40]} 19. h4 {[%emt 0:01:48]} Bg4 {[%emt 0:02:54]} 20. Ng1 {[%emt 0:05:37]} Nf5 {[%emt 0:02:08]} 21. Bh3 {[%emt 0:02:42]} Bf8 {[%emt 0:03:30]} 22. Bxg4 {[%emt 0:00:56]} Rxg4 23. Ne2 {[%emt 0:00:11]} Rhg8 {[%emt 0:00:23]} 24. Rhg1 {[%emt 0:00:32]} Bd6 {[%emt 0:00:42]} 25. Ka1 {[%emt 0:01:38]} Qa4 {[%emt 0:00:37]} 26. Kb1 {[%emt 0:00:45]} b5 {[%emt 0:01:33]} 27. a3 {[%emt 0:01:44]} a5 {[%emt 0:02:45]} 28. Qe1 {[%emt 0:00:18]} Kc7 {[%emt 0:00:51]} 29. Kc1 {[%emt 0:00:39]} Rb8 {[%emt 0:01:36]} 30. Kd2 {[%emt 0:00:33]} Qb3 {[%emt 0:01:58]} 31. Qb1 {[%emt 0:00:59]} b4 {[%emt 0:02:14]} 32. axb4 {[%emt 0:01:49]} axb4 {[%emt 0:00:23]} 33. cxb4 {[%emt 0:01:23]} Bxb4+ {[%emt 0:00:16]} 34. Nc3 {[%emt 0:02:55]} Nxg3 {[%emt 0:01:23]} 35. Re1 {[%emt 0:01:06]} Bxc3+ {[%emt 0:02:22]} 36. bxc3 {[%emt 0:00:13]} Rxh4 {[%emt 0:04:26]} 37. Nb4 {[%emt 0:00:54]} Rh2+ {[%emt 0:00:33]} 0-1

[Event "32nd Panamerican Youth 2022"]
[Site "Montevideo"]
[Date "2022.06.27"]
[Round "3.13"]
[White "Adam, Ernestina"]
[Black "Brito Carrascal, Isabela"]
[Result "1-0"]
[ECO "B43"]
[WhiteElo "1681"]
[BlackElo "1487"]
[Annotator "NA"]
[PlyCount "108"]
[EventDate "2022.06.26"]
[EventType "swiss"]
[EventCountry "URU"]
[SourceTitle "playchess.com"]
[Source "ChessBase"]
[SourceQuality "1"]
[TimeControl "5400+30"]

1. e4 {[%emt 0:00:03]} c5 {[%emt 0:00:11]} 2. Nf3 {[%emt 0:00:21]} e6 {[%emt 0:00:11]} 3. d4 {[%emt 0:00:06]} cxd4 {[%emt 0:00:07]} 4. Nxd4 {[%emt 0:00:38]} a6 {[%emt 0:00:11]} 5. Nc3 {[%emt 0:00:32]} Qc7 {[%emt 0:00:16]} 6. Bd3 {[%emt 0:01:10]} Nf6 {[%emt 0:01:14]} 7. Qe2 {[%emt 0:00:57]} d6 {[%emt 0:00:43]} 8. f4 {[%emt 0:02:47]} Nbd7 {[%emt 0:01:24]} 9. Be3 {[%emt 0:03:29]} b5 {[%emt 0:03:04]} 10. a3 {[%emt 0:03:49]} Bb7 {[%emt 0:00:49]} 11. O-O {[%emt 0:02:26]} Be7 {[%emt 0:04:11]} 12. Rae1 {[%emt 0:04:35]} Nc5 {[%emt 0:04:46]} 13. Bf2 {[%emt 0:02:43]} Nxd3 {[%emt 0:03:33]} 14. Qxd3 {[%emt 0:01:25]} O-O {[%emt 0:00:24]} 15. Qg3 {[%emt 0:10:02]} Rac8 {[%emt 0:11:04]} 16. Qh3 {[%emt 0:16:05]} Rfe8 {[%emt 0:14:14]} 17. g4 {[%emt 0:18:36]} Nd7 {[%emt 0:17:05]} 18. Qe3 {[%emt 0:08:06]} e5 {[%emt 0:10:27]} 19. Nf5 {[%emt 0:03:29]} exf4 {[%emt 0:03:13]} 20. Qxf4 {[%emt 0:00:14]} Ne5 {[%emt 0:00:15]} 21. Bd4 {[%emt 0:05:33]} Bf6 {[%emt 0:04:28]} 22. g5 {[%emt 0:03:38]} Ng6 {[%emt 0:00:18]} 23. Qd2 Be5 {[%emt 0:06:42]} 24. h4 {[%emt 0:04:11]} Rcd8 {[%emt 0:04:03]} 25. h5 {[%emt 0:01:18]} Ne7 {[%emt 0:02:17]} 26. Bxe5 {[%emt 0:03:47]} dxe5 {[%emt 0:00:13]} 27. Qf2 {[%emt 0:00:26]} Nxf5 {[%emt 0:00:24]} 28. Qxf5 {[%emt 0:00:55]} Bc8 {[%emt 0:00:27]} 29. Qf3 {[%emt 0:00:57]} Be6 {[%emt 0:00:14]} 30. h6 {[%emt 0:00:54]} Qe7 {[%emt 0:02:04]} 31. Qg3 {[%emt 0:01:17]} Bc4 {[%emt 0:00:33]} 32. Rf5 {[%emt 0:01:16]} Rd6 {[%emt 0:00:30]} 33. b3 {[%emt 0:00:38]} g6 {[%emt 0:00:05]} 34. Rf3 {[%emt 0:00:23]} Be6 {[%emt 0:02:49]} 35. Qxe5 {[%emt 0:00:22]} f6 {[%emt 0:00:23]} 36. gxf6 {[%emt 0:00:43]} Qf8 {[%emt 0:00:23]} 37. Qf4 {[%emt 0:00:20]} Bf5 {[%emt 0:02:03]} 38. e5 {[%emt 0:00:38]} Rdd8 {[%emt 0:00:10]} 39. Qg3 {[%emt 0:00:32]} Kh8 {[%emt 0:00:13]} 40. Rxf5 {[%emt 0:00:31]} gxf5 {[%emt 0:00:08]} 41. Qg7+ {[%emt 0:00:13]} Qxg7+ {[%emt 0:00:08]} 42. hxg7+ {[%emt 0:00:02]} Kg8 {[%emt 0:00:19]} 43. e6 {[%emt 0:00:01]} h6 {[%emt 0:02:33]} 44. f7+ {[%emt 0:00:07]} Kxg7 {[%emt 0:00:03]} 45. fxe8=Q {[%emt 0:00:19]} Rxe8 {[%emt 0:00:03]} 46. e7 {[%emt 0:00:19]} Kf7 {[%emt 0:00:08]} 47. Nd5 {[%emt 0:00:22]} Rg8+ {[%emt 0:00:33]} 48. Kf2 {[%emt 0:00:07]} Re8 {[%emt 0:00:04]} 49. Kf3 {[%emt 0:00:11]} h5 {[%emt 0:00:14]} 50. Kf4 {[%emt 0:00:05]} h4 {[%emt 0:00:10]} 51. Kxf5 {[%emt 0:00:05]} h3 {[%emt 0:00:10]} 52. Rh1 {[%emt 0:00:14]} Rh8 {[%emt 0:00:06]} 53. Kg4 {[%emt 0:00:52]} h2 {[%emt 0:00:14]} 54. Kg3 {[%emt 0:00:04]} Rh5 {[%emt 0:00:08]} 1-0

[Event "32nd Panamerican Youth 2022"]
[Site "Montevideo"]
[Date "2022.06.27"]
[Round "3.14"]
[White "Chen, Rachel Ruoxuan"]
[Black "Acuna Alarcon, Claudia Micaela"]
[Result "1-0"]
[ECO "B63"]
[WhiteElo "1618"]
[BlackElo "1359"]
[Annotator "NA RC"]
[PlyCount "65"]
[EventDate "2022.06.26"]
[EventType "swiss"]
[EventCountry "URU"]
[SourceTitle "playchess.com"]
[Source "ChessBase"]
[SourceQuality "1"]
[TimeControl "5400+30"]

1. e4 {[%emt 0:00:03]} c5 {[%emt 0:01:19]} 2. Nf3 {[%emt 0:00:04]} Nc6 {[%emt 0:00:31]} 3. d4 {[%emt 0:00:03]} cxd4 {[%emt 0:00:52]} 4. Nxd4 {[%emt 0:00:04]} Nf6 {[%emt 0:00:27]} 5. Nc3 {[%emt 0:00:12]} d6 {[%emt 0:01:08]} 6. Bg5 {[%emt 0:00:06]} e6 {[%emt 0:00:34]} 7. Qd2 {[%emt 0:00:15]} Be7 {[%emt 0:00:45]} 8. O-O-O {[%emt 0:00:33]} Bd7 {[%emt 0:04:59]} 9. Ndb5 {[%emt 0:03:19]} O-O {[%emt 0:05:27]} 10. Nxd6 {[%emt 0:00:49]} Bxd6 {[%emt 0:01:54]} 11. Qxd6 {[%emt 0:00:03]} Nb8 {[%emt 0:06:50]} 12. e5 {[%emt 0:04:11]} h6 {[%emt 0:00:27]} 13. Bxf6 {[%emt 0:01:03]} gxf6 {[%emt 0:00:38]} 14. Bb5 {[%emt 0:00:31]} fxe5 {[%emt 0:02:57]} 15. Bxd7 {[%emt 0:00:18]} Nxd7 {[%emt 0:00:31]} 16. Qxd7 {[%emt 0:00:04]} Qg5+ {[%emt 0:00:06]} 17. Qd2 {[%emt 0:00:29]} Qf6 {[%emt 0:00:26]} 18. Qe3 {[%emt 0:02:29]} a6 {[%emt 0:01:46]} 19. Ne4 {[%emt 0:03:32]} Qg7 {[%emt 0:01:41]} 20. Qg3 {[%emt 0:00:17]} Rac8 {[%emt 0:00:51]} 21. Nf6+ {[%emt 0:01:25]} Kh8 {[%emt 0:01:37]} 22. Qxg7+ {[%emt 0:00:03]} Kxg7 {[%emt 0:00:10]} 23. Nd7 {[%emt 0:00:02]} Rfe8 {[%emt 0:00:30]} 24. Nxe5 {[%emt 0:00:09]} f6 {[%emt 0:00:29]} 25. Rd7+ {[%emt 0:00:18]} Kg8 {[%emt 0:00:14]} 26. Ng4 {[%emt 0:00:21]} Rf8 {[%emt 0:00:37]} 27. Nxh6+ {[%emt 0:00:15]} Kh8 {[%emt 0:00:11]} 28. Rxb7 {[%emt 0:00:37]} f5 {[%emt 0:00:22]} 29. Rd1 {[%emt 0:00:16]} Rf6 {[%emt 0:01:06]} 30. Nf7+ {[%emt 0:00:10]} Kg8 {[%emt 0:00:07]} 31. Rdd7 {[%emt 0:00:28]} Rg6 {[%emt 0:01:18]} 32. g3 {[%emt 0:00:15]} Rf8 {[%emt 0:01:18]} 33. Ne5 1-0

[Event "32nd Panamerican Youth 2022"]
[Site "Montevideo"]
[Date "2022.06.27"]
[Round "3.15"]
[White "Diaz Bartolo, Elizabeth Schahrazad"]
[Black "Da Cunha, Gabriela Goes"]
[Result "1/2-1/2"]
[ECO "B12"]
[WhiteElo "1546"]
[BlackElo "1726"]
[Annotator "NA RC"]
[PlyCount "187"]
[EventDate "2022.06.26"]
[EventType "swiss"]
[EventCountry "URU"]
[SourceTitle "playchess.com"]
[Source "ChessBase"]
[SourceQuality "1"]
[TimeControl "5400+30"]

1. e4 {[%emt 0:00:10]} c6 {[%emt 0:00:47]} 2. d4 {[%emt 0:00:08]} d5 {[%emt 0:00:06]} 3. e5 {[%emt 0:00:06]} c5 {[%emt 0:00:05]} 4. c3 {[%emt 0:00:38]} cxd4 {[%emt 0:00:12]} 5. cxd4 {[%emt 0:00:10]} Nc6 {[%emt 0:00:48]} 6. Nf3 {[%emt 0:00:16]} Bg4 {[%emt 0:00:12]} 7. Bb5 {[%emt 0:02:49]} e6 {[%emt 0:03:01]} 8. O-O {[%emt 0:06:13]} Qb6 {[%emt 0:05:54]} 9. Nc3 {[%emt 0:05:54]} Bxf3 {[%emt 0:16:10]} 10. gxf3 {[%emt 0:01:34]} Nge7 {[%emt 0:01:24]} 11. Rb1 {[%emt 0:01:13]} Nf5 {[%emt 0:05:08]} 12. Be3 {[%emt 0:00:13]} Be7 {[%emt 0:04:33]} 13. Kh1 {[%emt 0:04:09]} O-O {[%emt 0:06:43]} 14. Bxc6 {[%emt 0:06:55]} Qxc6 {[%emt 0:04:43]} 15. Rg1 {[%emt 0:02:28]} Rfc8 {[%emt 0:05:20]} 16. Qf1 {[%emt 0:02:54]} Qc4 {[%emt 0:04:48]} 17. Qg2 {[%emt 0:02:49]} Bf8 {[%emt 0:00:43]} 18. Qg4 {[%emt 0:01:40]} Qd3 {[%emt 0:06:02]} 19. Rbd1 {[%emt 0:01:20]} Nxe3 {[%emt 0:03:15]} 20. Rxd3 {[%emt 0:01:40]} Nxg4 {[%emt 0:00:07]} 21. fxg4 {[%emt 0:00:38]} Bb4 {[%emt 0:02:10]} 22. Rgg3 {[%emt 0:02:20]} Rc4 {[%emt 0:03:58]} 23. Nd1 {[%emt 0:03:51]} Rc1 {[%emt 0:03:45]} 24. Kg2 {[%emt 0:00:32]} Rac8 {[%emt 0:01:31]} 25. Rb3 {[%emt 0:09:43]} Rxd1 {[%emt 0:07:33]} 26. Rxb4 {[%emt 0:00:07]} b6 {[%emt 0:02:11]} 27. Rc3 {[%emt 0:00:57]} Rxc3 {[%emt 0:02:09]} 28. bxc3 {[%emt 0:00:05]} Rc1 {[%emt 0:00:33]} 29. Rb3 {[%emt 0:00:23]} g5 {[%emt 0:02:04]} 30. h3 {[%emt 0:03:36]} Kg7 {[%emt 0:01:11]} 31. Kg3 {[%emt 0:00:27]} Rg1+ {[%emt 0:01:41]} 32. Kh2 {[%emt 0:00:18]} Rc1 {[%emt 0:00:11]} 33. Kg3 {[%emt 0:00:06]} Rg1+ {[%emt 0:04:35]} 34. Kh2 {[%emt 0:00:08]} Ra1 {[%emt 0:01:14]} 35. Rb2 {[%emt 0:00:30]} Rc1 {[%emt 0:00:33]} 36. Rb3 {[%emt 0:04:16]} Rc2 {[%emt 0:00:06]} 37. Kg3 {[%emt 0:01:12]} Rxa2 {[%emt 0:00:08]} 38. f3 Rc2 {[%emt 0:00:46]} 39. h4 {[%emt 0:01:34]} h6 {[%emt 0:01:29]} 40. f4 {[%emt 0:03:45]} gxf4+ {[%emt 0:01:06]} 41. Kxf4 a5 {[%emt 0:00:18]} 42. Ke3 {[%emt 0:08:30]} a4 {[%emt 0:00:30]} 43. Rxb6 {[%emt 0:01:09]} Rxc3+ {[%emt 0:00:07]} 44. Kf2 {[%emt 0:00:09]} a3 {[%emt 0:00:54]} 45. Ra6 {[%emt 0:00:22]} Rb3 {[%emt 0:00:43]} 46. Ra7 {[%emt 0:00:40]} Rd3 {[%emt 0:01:23]} 47. Ra4 {[%emt 0:00:18]} Rd2+ {[%emt 0:00:33]} 48. Ke3 {[%emt 0:01:11]} Ra2 {[%emt 0:00:23]} 49. h5 {[%emt 0:01:32]} Ra1 {[%emt 0:00:39]} 50. Kf2 {[%emt 0:00:27]} a2 {[%emt 0:00:21]} 51. Kg2 {[%emt 0:00:26]} Rd1 {[%emt 0:00:16]} 52. Rxa2 {[%emt 0:00:09]} Rxd4 {[%emt 0:00:04]} 53. Kf3 {[%emt 0:00:09]} Re4 {[%emt 0:00:23]} 54. Ra7 {[%emt 0:01:30]} Rxe5 {[%emt 0:00:12]} 55. Ra4 {[%emt 0:00:07]} Re4 {[%emt 0:01:22]} 56. Ra8 {[%emt 0:02:11]} Rb4 {[%emt 0:00:05]} 57. Re8 {[%emt 0:00:14]} Rc4 {[%emt 0:00:57]} 58. Kg3 {[%emt 0:00:47]} Rc7 {[%emt 0:00:34]} 59. Kf4 {[%emt 0:00:19]} Rd7 {[%emt 0:00:19]} 60. Ke3 {[%emt 0:00:45]} d4+ {[%emt 0:00:34]} 61. Kd3 {[%emt 0:00:16]} Rd5 {[%emt 0:00:10]} 62. Rb8 {[%emt 0:00:35]} Rg5 {[%emt 0:00:23]} 63. Kxd4 {[%emt 0:00:23]} Rxg4+ {[%emt 0:00:06]} 64. Ke3 {[%emt 0:00:07]} Rg5 {[%emt 0:00:09]} 65. Kf4 {[%emt 0:00:19]} Rxh5 {[%emt 0:00:07]} 66. Ra8 {[%emt 0:00:13]} Rb5 {[%emt 0:00:07]} 67. Ra4 {[%emt 0:00:09]} Kf6 {[%emt 0:00:07]} 68. Ra8 {[%emt 0:00:07]} Rb4+ {[%emt 0:00:06]} 69. Kg3 {[%emt 0:00:12]} h5 {[%emt 0:00:13]} 70. Ra5 {[%emt 0:00:12]} h4+ {[%emt 0:00:09]} 71. Kh3 {[%emt 0:00:09]} e5 {[%emt 0:00:07]} 72. Ra6+ {[%emt 0:00:10]} Kf5 {[%emt 0:00:12]} 73. Ra7 {[%emt 0:00:08]} f6 {[%emt 0:00:11]} 74. Re7 {[%emt 0:00:06]} Rf4 {[%emt 0:00:14]} 75. Re8 {[%emt 0:00:07]} e4 {[%emt 0:00:52]} 76. Re7 {[%emt 0:00:10]} Kg6 {[%emt 0:00:37]} 77. Re6 {[%emt 0:00:11]} Kg5 {[%emt 0:00:11]} 78. Re8 {[%emt 0:00:09]} Rf3+ {[%emt 0:00:52]} 79. Kg2 {[%emt 0:00:07]} Kf4 {[%emt 0:00:21]} 80. Re6 {[%emt 0:00:10]} h3+ {[%emt 0:00:16]} 81. Kh2 {[%emt 0:00:10]} f5 {[%emt 0:00:14]} 82. Re8 {[%emt 0:00:10]} e3 {[%emt 0:00:22]} 83. Kg1 {[%emt 0:00:09]} Rf2 {[%emt 0:00:25]} 84. Kh1 {[%emt 0:01:11]} Ra2 {[%emt 0:00:13]} 85. Kg1 {[%emt 0:00:10]} Kf3 {[%emt 0:01:34]} 86. Re5 {[%emt 0:00:16]} f4 {[%emt 0:00:22]} 87. Re7 {[%emt 0:00:18]} Ra1+ {[%emt 0:00:13]} 88. Kh2 {[%emt 0:00:05]} e2 {[%emt 0:00:38]} 89. Rxe2 {[%emt 0:00:21]} Kxe2 {[%emt 0:00:08]} 90. Kxh3 {[%emt 0:00:04]} f3 {[%emt 0:00:08]} 91. Kg4 {[%emt 0:00:06]} f2 {[%emt 0:00:10]} 92. Kf5 {[%emt 0:00:05]} f1=R+ {[%emt 0:00:08]} 93. Ke5 {[%emt 0:00:11]} Ra4 {[%emt 0:00:13]} 94. Kd5 1/2-1/2

[Event "32nd Panamerican Youth 2022"]
[Site "Montevideo"]
[Date "2022.06.27"]
[Round "3.17"]
[White "Ticona Rocabado, Licael Roderick"]
[Black "Lavandeira, Juan Facundo"]
[Result "1-0"]
[ECO "A06"]
[WhiteElo "2097"]
[BlackElo "1676"]
[Annotator "RC"]
[PlyCount "63"]
[EventDate "2022.06.26"]
[EventType "swiss"]
[EventCountry "URU"]
[SourceTitle "playchess.com"]
[Source "ChessBase"]
[SourceQuality "1"]
[TimeControl "5400+30"]

1. Nf3 d5 2. g3 Nc6 3. d4 Bg4 4. Bg2 Qd7 5. h3 Bxf3 6. Bxf3 Nf6 7. c3 e5 8. dxe5 Nxe5 9. Bg2 c6 10. O-O Bc5 11. Nd2 O-O-O 12. b4 Bb6 13. a4 h5 14. h4 g5 15. a5 Bxf2+ 16. Rxf2 Nfg4 17. Bh3 f5 18. Bxg4 Nxg4 19. Nf3 Nxf2 20. Kxf2 gxh4 21. gxh4 Qd6 22. Qd4 Rhg8 23. Bf4 Rg4 24. Bxd6 Rxd4 25. Nxd4 Rxd6 26. Rg1 b6 27. axb6 axb6 28. Nxf5 Rf6 29. Rg5 c5 30. bxc5 bxc5 31. Rxh5 d4 32. cxd4 {[%emt 0:22:33]} 1-0